[Event "Titled Tuesday Blitz March 15 Late 2022"]
[White "Khanin, Semen"]
[Black "Sokolovsky, Yahli"]
[WhiteFideId "4111990"]
[BlackFideId "2820242"]
[WhiteElo "2442"]
[BlackElo "1770"]
[Result "1-0"]
[Round "04"]
[TimeControl "180+1"]
[Date "2022.03.15"]
[WhiteClock "0:00:09"]
[BlackClock "0:00:03"]

1. e4 {[%clk 0:02:48]}  g6 {[%clk 0:02:58]} 2. d4 {[%clk 0:02:48]}  Bg7 {[%clk 0:02:59]} 3. Nf3 {[%clk 0:02:48]}  d6 {[%clk 0:02:59]} 4. Be3 {[%clk 0:02:48]}  a6 {[%clk 0:02:58]} 5. c4 {[%clk 0:02:47]}  b6 {[%clk 0:02:57]} 6. Nc3 {[%clk 0:02:46]}  Bb7 {[%clk 0:02:58]} 7. Qd2 {[%clk 0:02:44]}  Nd7 {[%clk 0:02:58]} 8. Bd3 {[%clk 0:02:41]}  e5 {[%clk 0:02:47]} 9. d5 {[%clk 0:02:41]}  Nc5 {[%clk 0:02:45]} 10. Bc2 {[%clk 0:02:41]}  a5 {[%clk 0:02:44]} 11. b3 {[%clk 0:02:35]}  Ne7 {[%clk 0:02:42]} 12. h4 {[%clk 0:02:35]}  h6 {[%clk 0:02:37]} 13. h5 {[%clk 0:02:35]}  g5 {[%clk 0:02:37]} 14. Ne2 {[%clk 0:02:35]}  f5 {[%clk 0:02:23]} 15. exf5 {[%clk 0:02:33]}  e4 {[%clk 0:02:09]} 16. Nfd4 {[%clk 0:02:33]}  Nxf5 {[%clk 0:02:07]} 17. Nxf5 {[%clk 0:02:11]}  Bxa1 {[%clk 0:02:07]} 18. Bd4 {[%clk 0:02:04]}  Bxd4 {[%clk 0:01:46]} 19. Qxd4 {[%clk 0:02:05]}  Kd7 {[%clk 0:01:38]} 20. a3 {[%clk 0:02:05]}  Kc8 {[%clk 0:01:33]} 21. b4 {[%clk 0:02:04]}  axb4 {[%clk 0:01:33]} 22. axb4 {[%clk 0:02:05]}  Nd3+ {[%clk 0:01:32]} 23. Bxd3 {[%clk 0:02:04]}  exd3 {[%clk 0:01:33]} 24. Neg3 {[%clk 0:01:58]}  Re8+ {[%clk 0:01:25]} 25. Ne3 {[%clk 0:01:58]}  d2+ {[%clk 0:01:21]} 26. Qxd2 {[%clk 0:01:52]}  Ra1+ {[%clk 0:01:19]} 27. Ke2 {[%clk 0:01:53]}  Rxh1 {[%clk 0:01:20]} 28. Nxh1 {[%clk 0:01:53]}  Qf6 {[%clk 0:01:18]} 29. Ng3 {[%clk 0:01:53]}  Qf4 {[%clk 0:01:14]} 30. Kf1 {[%clk 0:01:48]}  Rf8 {[%clk 0:00:54]} 31. Kg1 {[%clk 0:01:49]}  Kb8 {[%clk 0:00:51]} 32. b5 {[%clk 0:01:45]}  Bc8 {[%clk 0:00:51]} 33. Qb2 {[%clk 0:01:40]}  Bg4 {[%clk 0:00:34]} 34. Qc2 {[%clk 0:01:05]}  Qd4 {[%clk 0:00:20]} 35. Qg6 {[%clk 0:00:58]}  Rf6 {[%clk 0:00:15]} 36. Qg8+ {[%clk 0:00:50]}  Kb7 {[%clk 0:00:12]} 37. Qh8 {[%clk 0:00:50]}  Qf4 {[%clk 0:00:12]} 38. Nxg4 {[%clk 0:00:49]}  Rf8 {[%clk 0:00:10]} 39. Qxh6 {[%clk 0:00:44]}  Re8 {[%clk 0:00:10]} 40. Nh2 {[%clk 0:00:22]}  Rf8 {[%clk 0:00:10]} 41. Nh1 {[%clk 0:00:14]}  Re8 {[%clk 0:00:08]} 42. Nf1 {[%clk 0:00:14]}  Re1 {[%clk 0:00:08]} 43. Ng3 {[%clk 0:00:13]}  Rc1 {[%clk 0:00:07]} 44. Qg6 {[%clk 0:00:13]}  Ra1 {[%clk 0:00:04]} 45. Qe4 {[%clk 0:00:11]}  Qf6 {[%clk 0:00:04]} 46. Qf5 {[%clk 0:00:10]}  Qb2 {[%clk 0:00:03]} 47. h6 {[%clk 0:00:10]}  Ra2 {[%clk 0:00:03]} 48. h7 {[%clk 0:00:10]}  Qg7 {[%clk 0:00:03]} 49. Ne3 {[%clk 0:00:08]}  Ra1+ {[%clk 0:00:03]} 50. Kh2 {[%clk 0:00:09]}  Qh6+ {[%clk 0:00:03]} 51. Qh3 {[%clk 0:00:09]} 1-0


[Site "https://www.chess.com"]

[Event "Titled Tuesday Blitz March 15 Late 2022"]
[White "Khripachenko, Alexander"]
[Black "Costachi, Mihnea"]
[WhiteFideId "54184975"]
[BlackFideId "1217518"]
[WhiteElo "2177"]
[BlackElo "2464"]
[Result "0-1"]
[Round "04"]
[TimeControl "180+1"]
[Date "2022.03.15"]
[WhiteClock "0:00:13"]
[BlackClock "0:00:29"]

1. d4 {[%clk 0:03:00]}  g6 {[%clk 0:03:00]} 2. e4 {[%clk 0:02:59]}  Bg7 {[%clk 0:03:01]} 3. Nf3 {[%clk 0:02:59]}  c6 {[%clk 0:03:02]} 4. Nc3 {[%clk 0:02:59]}  d5 {[%clk 0:03:02]} 5. h3 {[%clk 0:03:00]}  dxe4 {[%clk 0:03:01]} 6. Nxe4 {[%clk 0:03:00]}  Nf6 {[%clk 0:03:02]} 7. Nxf6+ {[%clk 0:03:00]}  Bxf6 {[%clk 0:03:03]} 8. Bc4 {[%clk 0:03:01]}  O-O {[%clk 0:03:03]} 9. O-O {[%clk 0:03:01]}  Nd7 {[%clk 0:03:03]} 10. Re1 {[%clk 0:03:02]}  Nb6 {[%clk 0:03:03]} 11. Bb3 {[%clk 0:03:02]}  Bf5 {[%clk 0:02:58]} 12. c3 {[%clk 0:03:00]}  a5 {[%clk 0:02:58]} 13. a4 {[%clk 0:02:56]}  Re8 {[%clk 0:02:58]} 14. Ne5 {[%clk 0:02:56]}  Bxe5 {[%clk 0:02:53]} 15. Rxe5 {[%clk 0:02:55]}  Nd7 {[%clk 0:02:40]} 16. Re1 {[%clk 0:02:49]}  e5 {[%clk 0:02:36]} 17. Be3 {[%clk 0:02:48]}  exd4 {[%clk 0:02:33]} 18. Bxd4 {[%clk 0:02:36]}  Rxe1+ {[%clk 0:02:29]} 19. Qxe1 {[%clk 0:02:37]}  c5 {[%clk 0:02:29]} 20. Be3 {[%clk 0:02:35]}  Qb6 {[%clk 0:02:25]} 21. Qd1 {[%clk 0:02:23]}  Nf6 {[%clk 0:02:17]} 22. Bc2 {[%clk 0:02:13]}  Rd8 {[%clk 0:02:06]} 23. Qc1 {[%clk 0:02:08]}  Bxc2 {[%clk 0:01:45]} 24. Qxc2 {[%clk 0:02:07]}  Qd6 {[%clk 0:01:44]} 25. Re1 {[%clk 0:01:55]}  Kg7 {[%clk 0:01:38]} 26. Qb3 {[%clk 0:01:53]}  b6 {[%clk 0:01:36]} 27. Bg5 {[%clk 0:01:52]}  h6 {[%clk 0:01:29]} 28. Bh4 {[%clk 0:01:48]}  g5 {[%clk 0:01:15]} 29. Bg3 {[%clk 0:01:48]}  Qd2 {[%clk 0:01:15]} 30. Re3 {[%clk 0:01:03]}  Qd1+ {[%clk 0:01:14]} 31. Qxd1 {[%clk 0:01:02]}  Rxd1+ {[%clk 0:01:15]} 32. Kh2 {[%clk 0:01:03]}  Rd2 {[%clk 0:01:13]} 33. b3 {[%clk 0:01:00]}  Nd5 {[%clk 0:01:08]} 34. Rf3 {[%clk 0:01:01]}  Kg6 {[%clk 0:00:57]} 35. c4 {[%clk 0:01:01]}  Ne7 {[%clk 0:00:57]} 36. Bc7 {[%clk 0:00:59]}  Nc8 {[%clk 0:00:57]} 37. Re3 {[%clk 0:00:57]}  Rd7 {[%clk 0:00:58]} 38. Bg3 {[%clk 0:00:56]}  Ne7 {[%clk 0:00:53]} 39. Rc3 {[%clk 0:00:40]}  Nf5 {[%clk 0:00:52]} 40. Bb8 {[%clk 0:00:38]}  h5 {[%clk 0:00:50]} 41. g3 {[%clk 0:00:38]}  f6 {[%clk 0:00:46]} 42. g4 {[%clk 0:00:32]}  hxg4 {[%clk 0:00:45]} 43. hxg4 {[%clk 0:00:33]}  Nd4 {[%clk 0:00:45]} 44. Kg2 {[%clk 0:00:29]}  Re7 {[%clk 0:00:39]} 45. Rd3 {[%clk 0:00:27]}  f5 {[%clk 0:00:35]} 46. gxf5+ {[%clk 0:00:27]}  Kxf5 {[%clk 0:00:36]} 47. Bd6 {[%clk 0:00:26]}  Rd7 {[%clk 0:00:36]} 48. Bg3 {[%clk 0:00:25]}  g4 {[%clk 0:00:36]} 49. Re3 {[%clk 0:00:24]}  Nf3 {[%clk 0:00:36]} 50. Bb8 {[%clk 0:00:16]}  Rd1 {[%clk 0:00:35]} 51. Bh2 {[%clk 0:00:14]}  Rb1 {[%clk 0:00:33]} 52. Rc3 {[%clk 0:00:14]}  Rb2 {[%clk 0:00:29]} 53. Rd3 {[%clk 0:00:13]}  Ne1+ {[%clk 0:00:29]} 0-1


[Site "https://www.chess.com"]

[Event "Titled Tuesday Blitz March 15 Late 2022"]
[White "Kosteniuk, Alexandra"]
[Black "Al-Tarboush, Ward"]
[WhiteFideId "4128125"]
[BlackFideId "7601450"]
[WhiteElo "2469"]
[BlackElo "2276"]
[Result "1-0"]
[Round "04"]
[TimeControl "180+1"]
[Date "2022.03.15"]
[WhiteClock "0:00:51"]
[BlackClock "0:00:20"]

1. d4 {[%clk 0:03:00]}  d5 {[%clk 0:02:57]} 2. Nf3 {[%clk 0:03:00]}  Nf6 {[%clk 0:02:57]} 3. g3 {[%clk 0:03:00]}  c6 {[%clk 0:02:55]} 4. Bg2 {[%clk 0:03:00]}  Bf5 {[%clk 0:02:55]} 5. O-O {[%clk 0:03:00]}  e6 {[%clk 0:02:56]} 6. b3 {[%clk 0:03:00]}  h6 {[%clk 0:02:56]} 7. c4 {[%clk 0:03:00]}  Bd6 {[%clk 0:02:55]} 8. Nc3 {[%clk 0:02:59]}  Nbd7 {[%clk 0:02:54]} 9. Re1 {[%clk 0:02:56]}  O-O {[%clk 0:02:54]} 10. Bf4 {[%clk 0:02:46]}  Bxf4 {[%clk 0:02:52]} 11. gxf4 {[%clk 0:02:46]}  Ne4 {[%clk 0:02:53]} 12. Nxe4 {[%clk 0:02:43]}  Bxe4 {[%clk 0:02:54]} 13. e3 {[%clk 0:02:39]}  Kh8 {[%clk 0:02:52]} 14. Nd2 {[%clk 0:02:37]}  Bxg2 {[%clk 0:02:52]} 15. Kxg2 {[%clk 0:02:38]}  Qf6 {[%clk 0:02:51]} 16. Qh5 {[%clk 0:02:36]}  Qe7 {[%clk 0:02:39]} 17. Rg1 {[%clk 0:02:29]}  Nf6 {[%clk 0:02:35]} 18. Qh4 {[%clk 0:02:26]}  c5 {[%clk 0:02:33]} 19. dxc5 {[%clk 0:02:07]}  Qxc5 {[%clk 0:02:34]} 20. Rac1 {[%clk 0:01:50]}  Qc6 {[%clk 0:02:32]} 21. Kf1 {[%clk 0:01:43]}  Rad8 {[%clk 0:02:28]} 22. Qg3 {[%clk 0:01:39]}  g6 {[%clk 0:02:25]} 23. Qf3 {[%clk 0:01:30]}  d4 {[%clk 0:02:20]} 24. Qxc6 {[%clk 0:01:28]}  bxc6 {[%clk 0:02:21]} 25. Ke2 {[%clk 0:01:26]}  c5 {[%clk 0:02:19]} 26. Rcd1 {[%clk 0:01:11]}  Rd7 {[%clk 0:02:18]} 27. e4 {[%clk 0:01:08]}  d3+ {[%clk 0:02:16]} 28. Ke3 {[%clk 0:01:09]}  h5 {[%clk 0:02:14]} 29. f3 {[%clk 0:01:09]}  Rfd8 {[%clk 0:02:13]} 30. Rg2 {[%clk 0:01:07]}  h4 {[%clk 0:02:06]} 31. Nb1 {[%clk 0:01:06]}  a5 {[%clk 0:01:54]} 32. Nc3 {[%clk 0:01:03]}  Nh5 {[%clk 0:01:49]} 33. Na4 {[%clk 0:01:01]}  Rc7 {[%clk 0:01:21]} 34. Rgd2 {[%clk 0:00:59]}  Re8 {[%clk 0:00:45]} 35. Rxd3 {[%clk 0:00:57]}  e5 {[%clk 0:00:45]} 36. fxe5 {[%clk 0:00:57]}  Rxe5 {[%clk 0:00:45]} 37. Rd5 {[%clk 0:00:57]}  Rce7 {[%clk 0:00:33]} 38. Rxe5 {[%clk 0:00:57]}  Rxe5 {[%clk 0:00:33]} 39. Rd5 {[%clk 0:00:58]}  Re7 {[%clk 0:00:29]} 40. Nxc5 {[%clk 0:00:57]}  f5 {[%clk 0:00:27]} 41. Rd8+ {[%clk 0:00:55]}  Kh7 {[%clk 0:00:27]} 42. Rd7 {[%clk 0:00:56]}  Rxd7 {[%clk 0:00:24]} 43. Nxd7 {[%clk 0:00:57]}  Kg7 {[%clk 0:00:19]} 44. c5 {[%clk 0:00:55]}  Kf7 {[%clk 0:00:19]} 45. Ne5+ {[%clk 0:00:52]}  Ke7 {[%clk 0:00:20]} 46. Nxg6+ {[%clk 0:00:52]}  Kd7 {[%clk 0:00:21]} 47. Nxh4 {[%clk 0:00:51]}  f4+ {[%clk 0:00:20]} 1-0


[Site "https://www.chess.com"]

[Event "Titled Tuesday Blitz March 15 Late 2022"]
[White "Lashkin, Jegor"]
[Black "Aldokhin, Ivan"]
[WhiteFideId "13907808"]
[BlackFideId "24115720"]
[WhiteElo "2344"]
[BlackElo "2231"]
[Result "0-1"]
[Round "04"]
[TimeControl "180+1"]
[Date "2022.03.15"]
[WhiteClock "0:00:03"]
[BlackClock "0:00:06"]

1. d4 {[%clk 0:02:56]}  e6 {[%clk 0:02:59]} 2. c4 {[%clk 0:02:55]}  d5 {[%clk 0:02:59]} 3. Nc3 {[%clk 0:02:54]}  Ne7 {[%clk 0:03:00]} 4. Nf3 {[%clk 0:02:50]}  a6 {[%clk 0:03:00]} 5. cxd5 {[%clk 0:02:46]}  exd5 {[%clk 0:03:00]} 6. Bf4 {[%clk 0:02:42]}  Ng6 {[%clk 0:02:58]} 7. Bg3 {[%clk 0:02:42]}  Bd6 {[%clk 0:02:58]} 8. Bxd6 {[%clk 0:02:40]}  Qxd6 {[%clk 0:02:57]} 9. e3 {[%clk 0:02:41]}  O-O {[%clk 0:02:50]} 10. Bd3 {[%clk 0:02:38]}  Re8 {[%clk 0:02:46]} 11. O-O {[%clk 0:02:37]}  Bg4 {[%clk 0:02:40]} 12. h3 {[%clk 0:02:35]}  Bxf3 {[%clk 0:02:40]} 13. Qxf3 {[%clk 0:02:36]}  c6 {[%clk 0:02:38]} 14. g3 {[%clk 0:02:29]}  Nd7 {[%clk 0:02:36]} 15. h4 {[%clk 0:02:28]}  Ngf8 {[%clk 0:02:23]} 16. Rab1 {[%clk 0:02:16]}  Re6 {[%clk 0:02:08]} 17. b4 {[%clk 0:02:14]}  Rf6 {[%clk 0:02:08]} 18. Qg4 {[%clk 0:02:04]}  Rh6 {[%clk 0:01:44]} 19. a4 {[%clk 0:01:56]}  Re8 {[%clk 0:01:41]} 20. Rfd1 {[%clk 0:01:42]}  Nf6 {[%clk 0:01:36]} 21. Qf3 {[%clk 0:01:41]}  Qe6 {[%clk 0:01:17]} 22. Bf5 {[%clk 0:01:37]}  Qd6 {[%clk 0:01:11]} 23. Kg2 {[%clk 0:01:29]}  N6d7 {[%clk 0:01:05]} 24. b5 {[%clk 0:01:25]}  axb5 {[%clk 0:01:04]} 25. axb5 {[%clk 0:01:25]}  Rf6 {[%clk 0:01:05]} 26. Qg4 {[%clk 0:01:21]}  h5 {[%clk 0:01:00]} 27. Qh3 {[%clk 0:01:00]}  g6 {[%clk 0:00:56]} 28. Bd3 {[%clk 0:00:53]}  c5 {[%clk 0:00:52]} 29. dxc5 {[%clk 0:00:50]}  Nxc5 {[%clk 0:00:52]} 30. Be2 {[%clk 0:00:37]}  Ne4 {[%clk 0:00:36]} 31. Nxe4 {[%clk 0:00:35]}  Rxe4 {[%clk 0:00:35]} 32. Bf3 {[%clk 0:00:32]}  Re5 {[%clk 0:00:35]} 33. Rd4 {[%clk 0:00:22]}  Ne6 {[%clk 0:00:28]} 34. Rd3 {[%clk 0:00:15]}  Ref5 {[%clk 0:00:27]} 35. e4 {[%clk 0:00:16]}  Rxf3 {[%clk 0:00:19]} 36. Rxf3 {[%clk 0:00:15]}  Rxf3 {[%clk 0:00:20]} 37. Kxf3 {[%clk 0:00:16]}  dxe4+ {[%clk 0:00:18]} 38. Kg2 {[%clk 0:00:16]}  Qd3 {[%clk 0:00:18]} 39. Re1 {[%clk 0:00:14]}  Kg7 {[%clk 0:00:17]} 40. Kg1 {[%clk 0:00:13]}  Qxb5 {[%clk 0:00:13]} 41. Qg2 {[%clk 0:00:09]}  Nc5 {[%clk 0:00:11]} 42. Kh2 {[%clk 0:00:08]}  Qd3 {[%clk 0:00:11]} 43. Re3 {[%clk 0:00:08]}  Qd4 {[%clk 0:00:10]} 44. Qf1 {[%clk 0:00:08]}  Nd3 {[%clk 0:00:10]} 45. Qe2 {[%clk 0:00:08]}  f5 {[%clk 0:00:10]} 46. Qd2 {[%clk 0:00:07]}  b5 {[%clk 0:00:10]} 47. Kg1 {[%clk 0:00:06]}  b4 {[%clk 0:00:11]} 48. Qc2 {[%clk 0:00:05]}  Qc3 {[%clk 0:00:11]} 49. Qa4 {[%clk 0:00:04]}  Qc7 {[%clk 0:00:10]} 50. Kg2 {[%clk 0:00:02]}  Qf7 {[%clk 0:00:10]} 51. Qa1+ {[%clk 0:00:03]}  Kh7 {[%clk 0:00:08]} 52. Qb1 {[%clk 0:00:04]}  b3 {[%clk 0:00:07]} 53. Re2 {[%clk 0:00:04]}  Qc4 {[%clk 0:00:07]} 54. Re3 {[%clk 0:00:03]}  b2 {[%clk 0:00:07]} 55. Re2 {[%clk 0:00:02]}  Qc1 {[%clk 0:00:07]} 56. Qa2 {[%clk 0:00:03]}  b1=Q {[%clk 0:00:06]} 57. Qf7+ {[%clk 0:00:03]}  Kh6 {[%clk 0:00:07]} 58. Qf6 {[%clk 0:00:03]}  Qh1# {[%clk 0:00:06]} 0-1


[Site "https://www.chess.com"]

[Event "Titled Tuesday Blitz March 15 Late 2022"]
[White "Lazavik, Denis"]
[Black "Srihari L R"]
[WhiteFideId "13515110"]
[BlackFideId "46617116"]
[WhiteElo "2437"]
[BlackElo "2121"]
[Result "1-0"]
[Round "04"]
[TimeControl "180+1"]
[Date "2022.03.15"]
[WhiteClock "0:01:58"]
[BlackClock "0:00:50"]

1. d4 {[%clk 0:02:55]}  d5 {[%clk 0:02:57]} 2. c4 {[%clk 0:02:55]}  e6 {[%clk 0:02:57]} 3. Nf3 {[%clk 0:02:55]}  Nf6 {[%clk 0:02:57]} 4. g3 {[%clk 0:02:56]}  c5 {[%clk 0:02:57]} 5. cxd5 {[%clk 0:02:55]}  Nxd5 {[%clk 0:02:57]} 6. Bg2 {[%clk 0:02:53]}  Nc6 {[%clk 0:02:57]} 7. O-O {[%clk 0:02:52]}  cxd4 {[%clk 0:02:57]} 8. Nxd4 {[%clk 0:02:52]}  Bd7 {[%clk 0:02:57]} 9. Nc3 {[%clk 0:02:42]}  Ndb4 {[%clk 0:02:53]} 10. Ndb5 {[%clk 0:02:35]}  a6 {[%clk 0:02:48]} 11. Nd6+ {[%clk 0:02:34]}  Bxd6 {[%clk 0:02:48]} 12. Qxd6 {[%clk 0:02:35]}  Qe7 {[%clk 0:02:48]} 13. Qxe7+ {[%clk 0:02:33]}  Kxe7 {[%clk 0:02:49]} 14. Be3 {[%clk 0:02:33]}  Rhc8 {[%clk 0:02:22]} 15. Bc5+ {[%clk 0:02:33]}  Ke8 {[%clk 0:02:21]} 16. Ne4 {[%clk 0:02:25]}  Nd5 {[%clk 0:02:07]} 17. Nd6+ {[%clk 0:02:23]}  Kd8 {[%clk 0:02:07]} 18. Nxc8 {[%clk 0:02:16]}  Rxc8 {[%clk 0:02:08]} 19. Rac1 {[%clk 0:02:15]}  Ke8 {[%clk 0:01:48]} 20. Rfd1 {[%clk 0:02:14]}  Ne5 {[%clk 0:01:28]} 21. Bd4 {[%clk 0:02:10]}  Nc6 {[%clk 0:01:12]} 22. Bxg7 {[%clk 0:02:08]}  f6 {[%clk 0:00:58]} 23. Bxd5 {[%clk 0:02:06]}  exd5 {[%clk 0:00:59]} 24. Bxf6 {[%clk 0:02:06]}  Kf7 {[%clk 0:01:00]} 25. Bc3 {[%clk 0:02:02]}  Bg4 {[%clk 0:00:56]} 26. Rxd5 {[%clk 0:02:01]}  Bxe2 {[%clk 0:00:51]} 27. Re1 {[%clk 0:02:01]}  Bc4 {[%clk 0:00:51]} 28. Rd7+ {[%clk 0:01:59]}  Kg6 {[%clk 0:00:50]} 29. Rg7+ {[%clk 0:01:58]}  Kh6 {[%clk 0:00:50]} 30. Rxb7 {[%clk 0:01:58]} 1-0


[Site "https://www.chess.com"]

[Event "Titled Tuesday Blitz March 15 Late 2022"]
[White "Levitskiy, Andrey"]
[Black "Kujawski, Adam"]
[WhiteFideId "14132885"]
[BlackFideId "1100920"]
[WhiteElo "2301"]
[BlackElo "2053"]
[Result "1-0"]
[Round "04"]
[TimeControl "180+1"]
[Date "2022.03.16"]
[WhiteClock "0:00:06"]
[BlackClock "0:00:02"]

1. d4 {[%clk 0:03:00]}  Nf6 {[%clk 0:02:58]} 2. Bf4 {[%clk 0:03:01]}  c5 {[%clk 0:02:58]} 3. d5 {[%clk 0:02:46]}  e6 {[%clk 0:02:57]} 4. Nc3 {[%clk 0:02:45]}  exd5 {[%clk 0:02:55]} 5. Nxd5 {[%clk 0:02:45]}  Nxd5 {[%clk 0:02:55]} 6. Qxd5 {[%clk 0:02:44]}  Be7 {[%clk 0:02:56]} 7. e4 {[%clk 0:02:20]}  Nc6 {[%clk 0:02:55]} 8. Ne2 {[%clk 0:02:00]}  d6 {[%clk 0:02:29]} 9. Nc3 {[%clk 0:01:59]}  O-O {[%clk 0:01:42]} 10. O-O-O {[%clk 0:01:45]}  Be6 {[%clk 0:01:42]} 11. Qd2 {[%clk 0:01:37]}  Qa5 {[%clk 0:01:38]} 12. Kb1 {[%clk 0:01:30]}  Bf6 {[%clk 0:01:19]} 13. Nd5 {[%clk 0:01:24]}  Bxd5 {[%clk 0:01:17]} 14. Qxa5 {[%clk 0:01:17]}  Nxa5 {[%clk 0:01:17]} 15. Rxd5 {[%clk 0:01:17]}  Rad8 {[%clk 0:01:01]} 16. Bxd6 {[%clk 0:01:03]}  Rfe8 {[%clk 0:01:01]} 17. Bd3 {[%clk 0:00:43]}  c4 {[%clk 0:00:42]} 18. e5 {[%clk 0:00:20]}  cxd3 {[%clk 0:00:18]} 19. Rxa5 {[%clk 0:00:20]}  dxc2+ {[%clk 0:00:16]} 20. Kxc2 {[%clk 0:00:21]}  b6 {[%clk 0:00:14]} 21. Rd5 {[%clk 0:00:16]}  Be7 {[%clk 0:00:04]} 22. Rhd1 {[%clk 0:00:16]}  Bxd6 {[%clk 0:00:03]} 23. Rxd6 {[%clk 0:00:15]}  Rc8+ {[%clk 0:00:03]} 24. Kb3 {[%clk 0:00:13]}  Rxe5 {[%clk 0:00:03]} 25. Rd8+ {[%clk 0:00:09]}  Re8 {[%clk 0:00:03]} 26. Rxc8 {[%clk 0:00:10]}  Rxc8 {[%clk 0:00:03]} 27. Rd7 {[%clk 0:00:11]}  Ra8 {[%clk 0:00:03]} 28. a4 {[%clk 0:00:09]}  g5 {[%clk 0:00:04]} 29. Kb4 {[%clk 0:00:04]}  Kg7 {[%clk 0:00:04]} 30. Kb5 {[%clk 0:00:04]}  Kf6 {[%clk 0:00:04]} 31. Ka6 {[%clk 0:00:05]}  Re8 {[%clk 0:00:02]} 32. Rxa7 {[%clk 0:00:05]}  Re2 {[%clk 0:00:02]} 33. Rb7 {[%clk 0:00:05]}  Rxb2 {[%clk 0:00:02]} 34. Rxb6+ {[%clk 0:00:06]} 1-0


[Site "https://www.chess.com"]

[Event "Titled Tuesday Blitz March 15 Late 2022"]
[White "Manukyan, Sargis A."]
[Black "Yeshchenko, Uliana"]
[WhiteFideId "13303970"]
[BlackFideId "14187272"]
[WhiteElo "2187"]
[BlackElo "1881"]
[Result "1-0"]
[Round "04"]
[TimeControl "180+1"]
[Date "2022.03.16"]
[WhiteClock "0:01:22"]
[BlackClock "0:00:13"]

1. d4 {[%clk 0:03:00]}  d5 {[%clk 0:02:58]} 2. c4 {[%clk 0:03:00]}  e6 {[%clk 0:02:58]} 3. Nc3 {[%clk 0:02:59]}  Nf6 {[%clk 0:02:55]} 4. Bg5 {[%clk 0:02:59]}  Be7 {[%clk 0:02:40]} 5. Nf3 {[%clk 0:02:58]}  Nbd7 {[%clk 0:02:33]} 6. e3 {[%clk 0:02:57]}  O-O {[%clk 0:02:32]} 7. c5 {[%clk 0:02:55]}  c6 {[%clk 0:02:28]} 8. b4 {[%clk 0:02:55]}  h6 {[%clk 0:02:13]} 9. Bh4 {[%clk 0:02:53]}  b6 {[%clk 0:01:50]} 10. Be2 {[%clk 0:02:49]}  a5 {[%clk 0:01:47]} 11. a3 {[%clk 0:02:48]}  Ba6 {[%clk 0:01:43]} 12. Bxa6 {[%clk 0:02:47]}  Rxa6 {[%clk 0:01:44]} 13. O-O {[%clk 0:02:41]}  Qa8 {[%clk 0:01:38]} 14. Bxf6 {[%clk 0:02:37]}  Bxf6 {[%clk 0:01:31]} 15. Nd2 {[%clk 0:02:27]}  e5 {[%clk 0:01:23]} 16. Nb3 {[%clk 0:02:18]}  exd4 {[%clk 0:01:18]} 17. exd4 {[%clk 0:02:17]}  Re8 {[%clk 0:01:09]} 18. b5 {[%clk 0:02:09]}  cxb5 {[%clk 0:01:06]} 19. Nxb5 {[%clk 0:02:10]}  Qc6 {[%clk 0:01:02]} 20. Nd6 {[%clk 0:02:01]}  Rb8 {[%clk 0:01:00]} 21. Rc1 {[%clk 0:01:57]}  bxc5 {[%clk 0:00:57]} 22. dxc5 {[%clk 0:01:53]}  Qa4 {[%clk 0:00:26]} 23. Qd3 {[%clk 0:01:28]}  Rxd6 {[%clk 0:00:21]} 24. cxd6 {[%clk 0:01:25]}  Rxb3 {[%clk 0:00:15]} 25. Rc8+ {[%clk 0:01:25]}  Nf8 {[%clk 0:00:15]} 26. Qxd5 {[%clk 0:01:24]}  Qxa3 {[%clk 0:00:13]} 27. Rxf8+ {[%clk 0:01:22]}  Kxf8 {[%clk 0:00:13]} 28. Qa8+ {[%clk 0:01:22]} 1-0


[Site "https://www.chess.com"]

[Event "Titled Tuesday Blitz March 15 Late 2022"]
[White "Martin Duque, Jesus"]
[Black "Spitzl, Vinzent"]
[WhiteFideId "2208954"]
[BlackFideId "12901253"]
[WhiteElo "2243"]
[BlackElo "2160"]
[Result "1-0"]
[Round "04"]
[TimeControl "180+1"]
[Date "2022.03.16"]
[WhiteClock "0:00:34"]
[BlackClock "0:00:02"]

1. Nf3 {[%clk 0:02:58]}  Nf6 {[%clk 0:02:53]} 2. b3 {[%clk 0:02:58]}  e6 {[%clk 0:02:53]} 3. Bb2 {[%clk 0:02:59]}  Be7 {[%clk 0:02:53]} 4. g3 {[%clk 0:02:59]}  O-O {[%clk 0:02:53]} 5. Bg2 {[%clk 0:03:00]}  d5 {[%clk 0:02:53]} 6. O-O {[%clk 0:03:00]}  c5 {[%clk 0:02:52]} 7. e3 {[%clk 0:03:00]}  Nc6 {[%clk 0:02:53]} 8. Qe2 {[%clk 0:03:00]}  Bd7 {[%clk 0:02:51]} 9. c4 {[%clk 0:02:58]}  Qc7 {[%clk 0:02:47]} 10. Nc3 {[%clk 0:02:57]}  Rfd8 {[%clk 0:02:42]} 11. cxd5 {[%clk 0:02:56]}  Nxd5 {[%clk 0:02:41]} 12. Nxd5 {[%clk 0:02:57]}  exd5 {[%clk 0:02:42]} 13. d4 {[%clk 0:02:56]}  b6 {[%clk 0:02:36]} 14. Rac1 {[%clk 0:02:55]}  Be6 {[%clk 0:02:27]} 15. Rfd1 {[%clk 0:02:44]}  Rac8 {[%clk 0:02:20]} 16. dxc5 {[%clk 0:02:36]}  bxc5 {[%clk 0:02:17]} 17. Ne1 {[%clk 0:02:36]}  Qa5 {[%clk 0:02:01]} 18. a3 {[%clk 0:02:18]}  Qb6 {[%clk 0:02:00]} 19. b4 {[%clk 0:02:15]}  cxb4 {[%clk 0:01:53]} 20. axb4 {[%clk 0:02:14]}  Nxb4 {[%clk 0:01:48]} 21. Bd4 {[%clk 0:02:14]}  Qb7 {[%clk 0:01:43]} 22. Qb2 {[%clk 0:02:04]}  f6 {[%clk 0:01:36]} 23. Nd3 {[%clk 0:02:03]}  a5 {[%clk 0:01:01]} 24. Nf4 {[%clk 0:01:43]}  Bf7 {[%clk 0:01:01]} 25. Bh3 {[%clk 0:01:22]}  Rxc1 {[%clk 0:00:59]} 26. Rxc1 {[%clk 0:01:23]}  Qa6 {[%clk 0:00:53]} 27. Rc7 {[%clk 0:01:19]}  Bd6 {[%clk 0:00:46]} 28. Bf1 {[%clk 0:01:12]}  Qa8 {[%clk 0:00:31]} 29. Ra7 {[%clk 0:01:12]}  Qb8 {[%clk 0:00:31]} 30. Rxa5 {[%clk 0:00:40]}  Nc6 {[%clk 0:00:30]} 31. Rb5 {[%clk 0:00:40]}  Qa8 {[%clk 0:00:23]} 32. Bb6 {[%clk 0:00:39]}  Rb8 {[%clk 0:00:19]} 33. Nxd5 {[%clk 0:00:39]}  Bxd5 {[%clk 0:00:15]} 34. Rxd5 {[%clk 0:00:40]}  Bc7 {[%clk 0:00:15]} 35. Rb5 {[%clk 0:00:37]}  Bxb6 {[%clk 0:00:11]} 36. Rxb6 {[%clk 0:00:37]}  Rxb6 {[%clk 0:00:11]} 37. Qxb6 {[%clk 0:00:38]}  Qc8 {[%clk 0:00:10]} 38. Qc5 {[%clk 0:00:37]}  Qd7 {[%clk 0:00:04]} 39. Bc4+ {[%clk 0:00:37]}  Kh8 {[%clk 0:00:03]} 40. Bb5 {[%clk 0:00:34]}  Qd1+ {[%clk 0:00:02]} 41. Kg2 {[%clk 0:00:34]} 1-0


[Site "https://www.chess.com"]